fUSD/lending_fUSD_20240212
["ID","MTS","AMOUNT","RATE_DAILY","PERIOD"]
[313776566,1707714749353,-290.2259855,0.00022955,2]
[313776567,1707714749375,-500.0,0.00022955,2]
[313776568,1707714749408,-500.0,0.00022955,2]
[313776569,1707714749431,-500.0,0.00022955,2]
[313776570,1707714749453,-500.0,0.00022955,2]
[313776571,1707714749475,-1064.88,0.00022955,2]
[313776572,1707714749497,-734.22,0.00022955,2]
[313776573,1707714749519,-500.0,0.00022955,2]
[313776574,1707714749541,-1063.96,0.00022955,2]
[313776575,1707714749562,-500.0,0.00022955,2]
[313776576,1707714749584,-878.39,0.00022955,2]
[313776577,1707714749605,-2567.02,0.00022955,2]
[313776578,1707714749627,-820.29,0.00022955,2]
[313776579,1707714749649,-500.0,0.00022955,2]
[313776580,1707714749669,-1427.97,0.00022955,2]
[313776581,1707714749691,-500.0,0.00022955,2]
[313776582,1707714749713,-500.0,0.00022955,2]
[313776583,1707714749734,-1266.33,0.00022955,2]
[313776584,1707714749756,-500.0,0.00022955,2]
[313776585,1707714749776,-1282.36,0.00022955,2]
[313776586,1707714749800,-1045.31,0.00022955,2]
[313776587,1707714749823,-899.06,0.00022955,2]
[313776588,1707714749844,-7368.14,0.00022955,2]
[313776589,1707714749865,-500.0,0.00022955,2]
[313776590,1707714749885,-500.0,0.00022955,2]
[313776591,1707714749905,-643.26,0.00022955,2]
[313776592,1707714749930,-966.95,0.00022955,2]
[313776593,1707714749953,-2538.35,0.00022955,2]
[313776594,1707714749974,-500.0,0.00022955,2]
[313776595,1707714749996,-985.25,0.00022955,2]
[313776596,1707714750020,-913.0,0.00022955,2]
[313776597,1707714750044,-500.0,0.00022955,2]
[313776598,1707714750068,-500.0,0.00022955,2]
[313776599,1707714750090,-500.0,0.00022955,7]
[313776600,1707714750112,-500.0,0.00022955,2]
[313776601,1707714750135,-3070.49,0.00022955,2]
[313776602,1707714750158,-826.01,0.00022955,2]
[313776603,1707714750180,-500.0,0.00022955,2]
[313776604,1707714750202,-589.09,0.00022955,2]
[313776605,1707714750223,-500.0,0.00022955,2]
[313776606,1707714750249,-156.38739287,0.00022955,2]
[313776607,1707714750272,-233.5073691,0.00022957,3]
[313776608,1707714750296,-2978.79,0.00022957,2]
[313776609,1707714750319,-1989.29,0.00022957,2]
[313776610,1707714750342,-538.29519006,0.00022957,2]
[313776611,1707714750365,-1377.68,0.00022957,2]
[313776612,1707714750388,-546.45,0.00022957,2]
[313776613,1707714750410,-500.0,0.00022957,2]
[313776614,1707714750433,-1747.96,0.00022957,2]
[313776615,1707714750456,-2902.1,0.00022957,2]
[313776616,1707714750477,-1357.95,0.00022957,2]
[313776617,1707714750499,-1344.84,0.00022957,2]
[313776618,1707714750521,-5758.43,0.00022957,2]
[313776619,1707714750543,-1660.57,0.00022957,2]
[313776620,1707714750568,-712.06,0.00022957,2]
[313776621,1707714750591,-1791.83,0.00022957,2]
[313776622,1707714750613,-514.60659493,0.00022958,2]
[313776623,1707714750634,-512.90679823,0.00022958,2]
[313776624,1707714750656,-199.27595895,0.00022958,2]
[313776625,1707714750678,-805.15046392,0.00022958,2]
[313776626,1707714750699,-259.12527827,0.00022958,2]
[313776627,1707714750724,-1830.79501069,0.00022958,2]
[313776628,1707714750745,-352.00553377,0.00022958,2]
[313776629,1707714750767,-233.65591061,0.00022958,2]
[313776630,1707714750787,-1151.91078812,0.00022958,2]
[313776631,1707714750807,-279.79625967,0.00022958,2]
[313776632,1707714750829,-358.29294577,0.00022958,2]
[313776633,1707714750849,-266.9018899,0.00022958,2]
[313776634,1707714750872,-39215.06336907,0.00022958,2]
[313776635,1707714750893,-155.0,0.00022959,2]
[313776636,1707714750913,-263.86203082,0.00022959,2]
[313776637,1707714750936,-299.58949921,0.00022959,2]
[313776638,1707714750957,-3823.6091244,0.00022959,2]
[313776639,1707714750979,-180.44352021,0.00022959,2]
[313776640,1707714751001,-2538.05,0.00022959,2]
[313776641,1707714751022,-113210.21512003,0.0002296,2]
[313776642,1707714751047,-313.30760719,0.00022963,2]
[313776643,1707714751068,-2106.65,0.00022966,2]
[313776644,1707714751089,-951.61,0.00022966,2]
[313776645,1707714751112,-756.36,0.00022966,2]
[313776646,1707714751133,-7193.04,0.00022966,2]
[313776647,1707714751156,-500.0,0.00022966,2]
[313776648,1707714751180,-1762.29,0.00022966,2]
[313776649,1707714751202,-2183.12,0.00022966,2]
[313776650,1707714751224,-500.0,0.00022966,2]
[313776651,1707714751246,-566.91,0.00022966,2]
[313776652,1707714751268,-2271.37,0.00022966,2]
[313776653,1707714751289,-516.68,0.00022966,2]
[313776654,1707714751311,-1116.16,0.00022966,2]
[313776655,1707714751333,-5194.95,0.00022966,2]
[313776656,1707714751355,-500.0,0.00022966,2]
[313776657,1707714751379,-754.9,0.00022966,2]
[313776658,1707714751399,-1497.58,0.00022966,2]
[313776659,1707714751421,-500.0,0.00022966,2]
[313776660,1707714751443,-1677.77,0.00022966,2]
[313776661,1707714751464,-5491.17,0.00022966,2]
[313776662,1707714751485,-4375.97,0.00022966,2]
[313776663,1707714751506,-929.33,0.00022966,2]
[313776664,1707714751527,-462.64425941,0.00022967,2]
[313776665,1707714751555,-500.0,0.00022967,2]
[313776666,1707714751580,-500.0,0.00022967,2]
[313776667,1707714751602,-906.81,0.00022967,2]
[313776668,1707714751624,-500.0,0.00022967,2]
[313776669,1707714751646,-500.0,0.00022967,2]
[313776670,1707714751667,-500.0,0.00022967,2]
[313776671,1707714751689,-500.0,0.00022967,2]
[313776672,1707714751711,-500.0,0.00022967,2]
[313776673,1707714751732,-500.0,0.00022967,2]
[313776674,1707714751755,-500.0,0.00022967,2]
[313776675,1707714751776,-500.0,0.00022967,2]
[313776676,1707714751797,-500.0,0.00022967,2]
[313776677,1707714751817,-510.55,0.00022967,2]
[313776678,1707714752134,-500.0,0.00022967,2]
[313776679,1707714752154,-500.0,0.00022967,2]
[313776680,1707714752174,-515.99,0.00022967,2]
[313776681,1707714752194,-500.0,0.00022967,2]
[313776682,1707714752214,-500.0,0.00022967,2]
[313776683,1707714752234,-500.0,0.00022967,2]
[313776684,1707714752253,-500.0,0.00022967,2]
[313776685,1707714752273,-760.11,0.00022967,2]
[313776686,1707714752293,-500.0,0.00022967,2]
[313776687,1707714752314,-529.36,0.00022967,2]
[313776688,1707714752334,-579.4,0.00022967,2]
[313776689,1707714752354,-500.0,0.00022967,2]
[313776690,1707714752374,-500.0,0.00022967,2]
[313776691,1707714752394,-500.0,0.00022967,2]
[313776692,1707714752415,-500.0,0.00022967,2]
[313776693,1707714752434,-500.0,0.00022967,2]
[313776694,1707714752454,-587.6,0.00022967,2]
[313776695,1707714752473,-500.0,0.00022967,2]
[313776696,1707714752492,-500.0,0.00022967,2]
[313776697,1707714752511,-500.0,0.00022967,2]
[313776698,1707714752531,-500.0,0.00022967,2]
[313776699,1707714752551,-500.0,0.00022967,2]
[313776700,1707714752571,-500.0,0.00022967,2]
[313776701,1707714752591,-500.0,0.00022967,2]
[313776702,1707714752611,-642.32,0.00022967,2]
[313776703,1707714752639,-1200.07,0.00022967,2]
[313776704,1707714752660,-538.94,0.00022967,2]
[313776705,1707714752681,-513.46,0.00022967,2]
[313776706,1707714752702,-513.53,0.00022967,2]
[313776707,1707714752725,-500.0,0.00022967,2]
[313776708,1707714752747,-1085.2,0.00022967,2]
[313776709,1707714752766,-520.22927032,0.00022967,2]
[313776710,1707714752787,-500.0,0.00022967,2]
[313776711,1707714752807,-500.0,0.00022967,2]
[313776712,1707714752827,-500.0,0.00022967,2]
[313776713,1707714752848,-500.0,0.00022967,2]
[313776714,1707714752869,-500.0,0.00022967,2]
[313776715,1707714752890,-536.15,0.00022967,2]
[313776716,1707714752913,-973.48,0.00022967,2]
[313776717,1707714752934,-500.0,0.00022967,2]
[313776718,1707714752955,-519.5,0.00022967,2]
[313776719,1707714752976,-623.35,0.00022967,2]
[313776720,1707714752996,-500.0,0.00022967,2]
[313776721,1707714753016,-500.0,0.00022967,2]
[313776722,1707714753037,-500.0,0.00022967,2]
[313776723,1707714753058,-500.0,0.00022967,2]
[313776724,1707714753080,-1760.72,0.00022967,2]
[313776725,1707714753101,-247.38354132,0.00022967,2]
[313776726,1707714753122,-500.0,0.00022967,2]
[313776727,1707714753143,-500.0,0.00022967,2]
[313776728,1707714753165,-1543.7,0.00022967,2]
[313776729,1707714753186,-194.00554563,0.00022967,2]
[313776730,1707714753206,-500.0,0.00022967,2]
[313776731,1707714753227,-1146.23,0.00022967,2]
[313776732,1707714753248,-500.0,0.00022967,2]
[313776733,1707714753273,-474.0741208,0.00022967,2]
[313776734,1707714753296,-2032.35,0.00022967,2]
[313776735,1707714753320,-500.0,0.00022967,2]
[313776736,1707714753341,-580.12,0.00022967,2]
[313776737,1707714753362,-517.23465344,0.00022967,2]
[313776738,1707714753385,-904.5,0.00022967,2]
[313776739,1707714753411,-502.13161105,0.00022967,2]
[313776740,1707714753432,-500.0,0.00022967,2]
[313776741,1707714753455,-500.0,0.00022967,2]
[313776742,1707714753477,-525.07026312,0.00022967,2]
[313776743,1707714753501,-500.0,0.00022967,2]
[313776744,1707714753524,-500.0,0.00022967,2]
[313776745,1707714753547,-528.55659483,0.00022967,2]
[313776746,1707714753572,-1078.02,0.00022967,2]
[313776747,1707714753595,-500.0,0.00022967,2]
[313776748,1707714753619,-500.0,0.00022967,2]
[313776749,1707714753641,-500.0,0.00022967,2]
[313776750,1707714753668,-551.58,0.00022967,2]
[313776751,1707714753689,-500.0,0.00022967,2]
[313776752,1707714753713,-500.0,0.00022967,2]
[313776753,1707714753734,-543.67306051,0.00022967,2]
[313776754,1707714753755,-500.0,0.00022967,2]
[313776755,1707714753778,-500.0,0.00022967,2]
[313776756,1707714753801,-729.6,0.00022967,2]
[313776757,1707714753823,-518.81319111,0.00022967,2]
[313776758,1707714753844,-500.0,0.00022967,2]
[313776759,1707714753873,-500.0,0.00022967,2]
[313776760,1707714753912,-500.0,0.00022967,2]
[313776761,1707714753933,-500.0,0.00022967,2]
[313776762,1707714753955,-575.81964172,0.00022967,2]
[313776763,1707714753976,-500.0,0.00022967,2]
[313776764,1707714753999,-500.0,0.00022967,2]
[313776765,1707714754022,-500.0,0.00022967,2]
[313776766,1707714754044,-814.59,0.00022967,2]
[313776767,1707714754066,-525.13489782,0.00022967,2]
[313776768,1707714754088,-500.0,0.00022967,2]
[313776769,1707714754109,-500.0,0.00022967,2]
[313776770,1707714754131,-500.0,0.00022967,2]
[313776771,1707714754157,-500.0,0.00022967,2]
[313776772,1707714754178,-500.0,0.00022967,2]
[313776773,1707714754199,-515.79995782,0.00022967,2]
[313776774,1707714754221,-500.0,0.00022967,2]
[313776775,1707714754243,-500.0,0.00022967,2]
[313776776,1707714754264,-500.0,0.00022967,2]
[313776777,1707714754286,-500.0,0.00022967,2]
[313776778,1707714754307,-500.0,0.00022967,2]
[313776779,1707714754329,-500.0,0.00022967,2]
[313776780,1707714754351,-155.1325523,0.00022967,2]
[313776781,1707714754372,-520.62370634,0.00022967,2]
[313776782,1707714754394,-500.0,0.00022967,2]
[313776783,1707714754414,-506.68252077,0.00022967,2]
[313776784,1707714754434,-500.0,0.00022967,2]
[313776785,1707714754454,-150.0,0.00022967,2]
[313776786,1707714754479,-500.0,0.00022967,2]
[313776787,1707714754502,-500.0,0.00022967,2]
[313776788,1707714754523,-500.0,0.00022967,2]
[313776789,1707714754546,-243.0111921,0.00022967,2]
[313776790,1707714754568,-500.0,0.00022967,2]
[313776791,1707714754591,-500.0,0.00022967,2]
[313776792,1707714754613,-500.0,0.00022967,2]
[313776793,1707714754635,-585.01320632,0.00022967,2]
[313776794,1707714754657,-500.0,0.00022967,2]
[313776795,1707714754678,-500.0,0.00022967,2]
[313776796,1707714754699,-500.0,0.00022967,2]
[313776797,1707714754722,-500.0,0.00022967,2]
[313776798,1707714754743,-500.0,0.00022967,2]
[313776799,1707714754765,-500.0,0.00022967,2]
[313776800,1707714754787,-500.0,0.00022967,2]
[313776801,1707714754808,-500.0,0.00022967,2]
[313776802,1707714754829,-500.0,0.00022967,2]
[313776803,1707714754850,-569.44,0.00022967,2]
[313776804,1707714754871,-500.0,0.00022967,2]
[313776805,1707714754893,-500.0,0.00022967,2]
[313776806,1707714754914,-500.0,0.00022967,2]
[313776807,1707714754935,-500.0,0.00022967,2]
[313776808,1707714754957,-523.79,0.00022967,2]
[313776809,1707714754978,-500.0,0.00022967,2]
[313776810,1707714754998,-500.0,0.00022967,2]
[313776811,1707714755019,-500.0,0.00022967,2]
[313776812,1707714755041,-500.0,0.00022967,2]
[313776813,1707714755063,-500.0,0.00022967,2]
[313776814,1707714755085,-500.0,0.00022967,2]
[313776815,1707714755107,-515.57,0.00022967,2]
[313776816,1707714755130,-500.0,0.00022967,2]
[313776817,1707714755152,-471.43059741,0.00022967,2]
[313776818,1707714755174,-595.48271192,0.00022967,2]
[313776819,1707714755197,-500.0,0.00022967,2]
[313776820,1707714755220,-500.0,0.00022967,2]
[313776821,1707714755243,-500.0,0.00022967,2]
[313776822,1707714755265,-500.0,0.00022967,2]
[313776823,1707714755289,-500.0,0.00022967,2]
[313776824,1707714755311,-500.0,0.00022967,2]
[313776825,1707714755334,-500.0,0.00022967,2]
[313776826,1707714755357,-500.0,0.00022967,2]
[313776827,1707714755381,-503.62,0.00022967,2]
[313776828,1707714755404,-634.42,0.00022967,2]
[313776829,1707714755427,-1042.65,0.00022967,2]
[313776830,1707714755449,-565.33459949,0.00022967,2]
[313776831,1707714755472,-500.0,0.00022967,2]
[313776832,1707714755493,-500.0,0.00022967,2]
[313776833,1707714755514,-519.72795368,0.00022967,2]
[313776834,1707714755536,-500.0,0.00022967,2]
[313776835,1707714755557,-548.32622674,0.00022967,2]
[313776836,1707714755579,-2393.08,0.00022967,2]
[313776837,1707714755601,-500.0,0.00022967,2]
[313776838,1707714755623,-227.48294119,0.00022967,2]
[313776839,1707714755645,-748.23,0.00022967,2]
[313776840,1707714755666,-500.0,0.00022967,2]
[313776841,1707714755688,-500.0,0.00022967,2]
[313776842,1707714755713,-17434.98,0.00022967,2]
[313776843,1707714755736,-1142.44,0.00022967,2]
[313776844,1707714755756,-500.0,0.00022967,2]
[313776845,1707714755781,-500.0,0.00022967,2]
[313776846,1707714755803,-500.0,0.00022967,2]
[313776847,1707714755826,-500.0,0.00022967,2]
[313776848,1707714755847,-1772.9,0.00022967,2]
[313776849,1707714755869,-500.0,0.00022967,2]
[313776850,1707714755893,-2364.51,0.00022967,2]
[313776851,1707714755915,-500.0,0.00022967,2]
[313776852,1707714755937,-645.01,0.00022967,2]
[313776853,1707714755959,-500.0,0.00022967,2]
[313776854,1707714755982,-1315.76,0.00022967,2]
[313776855,1707714756003,-500.0,0.00022967,2]
[313776856,1707714756024,-500.0,0.00022967,2]
[313776857,1707714756263,-500.0,0.00022967,2]
[313776858,1707714756286,-500.0,0.00022967,2]
[313776859,1707714756309,-500.0,0.00022967,2]
[313776860,1707714756331,-500.0,0.00022967,2]
[313776861,1707714756357,-568.88,0.00022967,2]
[313776862,1707714756379,-500.0,0.00022967,2]
[313776863,1707714756400,-500.0,0.00022967,2]
[313776864,1707714756422,-500.0,0.00022967,2]
[313776865,1707714756443,-500.0,0.00022967,2]
[313776866,1707714756465,-1450.66,0.00022967,2]
[313776867,1707714756486,-500.0,0.00022967,2]
[313776868,1707714756507,-2248.55,0.00022967,2]
[313776869,1707714756528,-500.0,0.00022967,2]
[313776870,1707714756550,-500.0,0.00022967,2]
[313776871,1707714756572,-1577.2,0.00022967,2]
[313776872,1707714756593,-500.0,0.00022967,2]
[313776873,1707714756614,-639.49,0.00022967,2]
[313776874,1707714756636,-602.19,0.00022967,2]
[313776875,1707714756657,-1130.17,0.00022967,2]
[313776876,1707714756679,-2561.99,0.00022967,2]
[313776877,1707714756701,-500.0,0.00022967,2]
[313776878,1707714756725,-588.78,0.00022967,2]
[313776879,1707714756747,-591.34,0.00022967,2]
[313776880,1707714756769,-500.0,0.00022967,2]
[313776881,1707714756792,-500.0,0.00022967,2]
[313776882,1707714756814,-1917.46,0.00022967,2]
[313776883,1707714756835,-567.75991418,0.00022967,2]
[313776884,1707714756856,-638.85,0.00022967,2]
[313776885,1707714756878,-500.0,0.00022967,2]
[313776886,1707714756900,-500.0,0.00022967,2]
[313776887,1707714756921,-500.0,0.00022967,2]
[313776888,1707714756942,-510.15,0.00022967,2]
[313776889,1707714756964,-3674.34,0.00022967,2]
[313776890,1707714756986,-240.40734939,0.00022967,2]
[313776891,1707714757007,-500.0,0.00022967,2]
[313776892,1707714757032,-500.0,0.00022967,2]
[313776893,1707714757053,-500.0,0.00022967,2]
[313776894,1707714757074,-654.48,0.00022967,2]
[313776895,1707714757095,-500.0,0.00022967,2]
[313776896,1707714757116,-500.0,0.00022967,2]
[313776897,1707714757137,-500.0,0.00022967,2]
[313776898,1707714757161,-684.25,0.00022967,2]
[313776899,1707714757183,-500.0,0.00022967,2]
[313776900,1707714757203,-500.0,0.00022967,2]
[313776901,1707714757225,-1191.11,0.00022967,2]
[313776902,1707714757246,-448.40160149,0.00022967,2]
[313776903,1707714757267,-500.0,0.00022967,2]
[313776904,1707714757289,-520.53530572,0.00022967,2]
[313776905,1707714757310,-895.07,0.00022967,2]
[313776906,1707714757332,-500.0,0.00022967,2]
[313776907,1707714757356,-500.0,0.00022967,2]
[313776908,1707714757381,-605.55,0.00022967,2]
[313776909,1707714757404,-500.0,0.00022967,2]
[313776910,1707714757426,-500.0,0.00022967,2]
[313776911,1707714757447,-500.0,0.00022967,2]
[313776912,1707714757469,-500.0,0.00022968,2]
[313776913,1707714757491,-500.0,0.00022968,2]
[313776914,1707714757513,-500.0,0.00022968,2]
[313776915,1707714757534,-545.76,0.00022968,2]
[313776916,1707714757556,-769.66,0.00022968,2]
[313776917,1707714757578,-624.0,0.00022968,2]
[313776918,1707714757600,-502.0108951,0.00022968,2]
[313776919,1707714757622,-566.56087863,0.00022968,2]
[313776920,1707714757642,-492.79693503,0.00022968,2]
[313776921,1707714757663,-500.0,0.00022968,2]
[313776922,1707714757684,-500.0,0.00022968,2]
[313776923,1707714757706,-500.0,0.00022968,2]
[313776924,1707714757730,-1363.22,0.00022968,2]
[313776925,1707714757752,-687.44,0.00022968,2]
[313776926,1707714757775,-500.0,0.00022968,2]
[313776927,1707714757797,-1195.3,0.00022968,2]
[313776928,1707714757818,-500.0,0.00022968,2]
[313776929,1707714757839,-500.0,0.00022968,2]
[313776930,1707714757860,-500.0,0.00022968,2]
[313776931,1707714757881,-500.0,0.00022968,2]
[313776932,1707714757902,-661.9,0.00022968,2]
[313776933,1707714757924,-1074.9,0.00022968,2]
[313776934,1707714757944,-1074.9,0.00022968,2]
[313776935,1707714757963,-1074.9,0.00022968,2]
[313776936,1707714757984,-1074.9,0.00022968,2]
[313776937,1707714758004,-1074.9,0.00022968,2]
[313776938,1707714758024,-666.66,0.00022968,2]
[313776939,1707714758045,-500.0,0.00022968,2]
[313776940,1707714758065,-508.57,0.00022968,2]
[313776941,1707714758087,-982.92,0.00022968,2]
[313776942,1707714758107,-500.0,0.00022968,2]
[313776943,1707714758130,-781.45,0.00022968,2]
[313776944,1707714758150,-500.0,0.00022968,2]
[313776945,1707714758172,-500.0,0.00022968,2]
[313776946,1707714758194,-542.82182237,0.00022968,2]
[313776947,1707714758219,-500.0,0.00022968,2]
[313776948,1707714758241,-1302.04,0.00022968,2]
[313776949,1707714758263,-500.0,0.00022968,2]
[313776950,1707714758285,-577.5,0.00022968,2]
[313776951,1707714758306,-1902.27,0.00022968,2]
[313776952,1707714758328,-500.0,0.00022968,2]
[313776953,1707714758350,-1317.97,0.00022968,2]
[313776954,1707714758372,-1380.73,0.00022968,2]
[313776955,1707714758394,-500.0,0.00022968,2]
[313776956,1707714758415,-500.0,0.00022968,2]
[313776957,1707714758435,-718.33,0.00022968,2]
[313776958,1707714758457,-570.21671698,0.00022968,2]
[313776959,1707714758477,-500.0,0.00022968,2]
[313776960,1707714758498,-500.0,0.00022968,2]
[313776961,1707714758519,-500.0,0.00022968,2]
[313776962,1707714758540,-1800.48,0.00022968,2]
[313776963,1707714758563,-1440.85,0.00022968,2]
[313776964,1707714758583,-546.47500991,0.00022968,2]
[313776965,1707714758605,-994.15,0.00022968,2]
[313776966,1707714758626,-500.0,0.00022968,2]
[313776967,1707714758648,-500.0,0.00022968,2]
[313776968,1707714758669,-500.0,0.00022968,2]
[313776969,1707714758690,-500.0,0.00022968,2]
[313776970,1707714758713,-500.0,0.00022968,2]
[313776971,1707714758735,-513.95,0.00022968,2]
[313776972,1707714758757,-500.0,0.00022968,2]
[313776973,1707714758778,-500.0,0.00022968,2]
[313776974,1707714758799,-500.0,0.00022968,2]
[313776975,1707714758819,-500.0,0.00022968,2]
[313776976,1707714758841,-150.0,0.00022968,2]
[313776977,1707714758862,-500.0,0.00022968,2]
[313776978,1707714758885,-549.65928075,0.00022968,2]
[313776979,1707714758907,-500.0,0.00022968,2]
[313776980,1707714758928,-500.0,0.00022968,2]
[313776981,1707714758950,-500.0,0.00022968,2]
[313776982,1707714758971,-500.0,0.00022968,2]
[313776983,1707714758991,-2068.13,0.00022968,2]
[313776984,1707714759012,-500.0,0.00022968,2]
[313776985,1707714759033,-558.44,0.00022968,2]
[313776986,1707714759054,-500.0,0.00022968,2]
[313776987,1707714759076,-500.0,0.00022968,2]
[313776988,1707714759098,-500.0,0.00022968,2]
[313776989,1707714759120,-500.0,0.00022968,2]
[313776990,1707714759140,-500.0,0.00022968,2]
[313776991,1707714759161,-500.0,0.00022968,2]
[313776992,1707714759182,-500.0,0.00022968,2]
[313776993,1707714759203,-500.0,0.00022968,2]
[313776994,1707714759226,-500.0,0.00022968,2]
[313776995,1707714759248,-500.0,0.00022968,2]
[313776996,1707714759270,-500.0,0.00022968,2]
[313776997,1707714759292,-500.0,0.00022968,2]
[313776998,1707714759314,-603.18,0.00022968,2]
[313776999,1707714759336,-4101.19,0.00022968,2]
[313777000,1707714759359,-500.0,0.00022968,2]
[313777001,1707714759380,-500.0,0.00022968,2]
[313777002,1707714759403,-1671.93,0.00022968,2]
[313777003,1707714759425,-500.0,0.00022968,2]
[313777004,1707714759447,-500.0,0.00022968,2]
[313777005,1707714759468,-630.71,0.00022968,2]
[313777006,1707714759489,-746.78,0.00022968,2]
[313777007,1707714759509,-352.39525589,0.00022968,2]
[313777008,1707714759530,-500.0,0.00022968,2]
[313777009,1707714759551,-2245.33,0.00022968,2]
[313777010,1707714759573,-1354.52,0.00022968,2]
[313777011,1707714759594,-500.0,0.00022968,2]
[313777012,1707714759617,-618.75,0.00022968,2]
[313777013,1707714759638,-500.0,0.00022968,2]
[313777014,1707714759659,-500.0,0.00022968,2]
[313777015,1707714759681,-1099.63,0.00022968,2]
[313777016,1707714759702,-500.0,0.00022968,2]
[313777017,1707714759727,-500.0,0.00022968,2]
[313777018,1707714759748,-2232.79,0.00022968,2]
[313777019,1707714759769,-4152.55,0.00022968,2]
[313777020,1707714759790,-500.0,0.00022968,2]
[313777021,1707714759810,-619.25,0.00022968,2]
[313777022,1707714759831,-500.0,0.00022968,2]
[313777023,1707714759852,-500.0,0.00022968,2]
[313777024,1707714759873,-1031.8,0.00022968,2]
[313777025,1707714759894,-700.33,0.00022968,2]
[313777026,1707714759916,-500.0,0.00022968,2]
[313777027,1707714759938,-500.0,0.00022968,2]
[313777028,1707714759959,-627.19,0.00022968,2]
[313777029,1707714759980,-1019.37,0.00022968,2]
[313777030,1707714760001,-1271.08,0.00022968,2]
[313777031,1707714760022,-3419.38,0.00022968,2]
[313777032,1707714760043,-500.0,0.00022968,2]
[313777033,1707714760064,-1702.2,0.00022968,2]
[313777034,1707714760086,-1050.42,0.00022968,2]
[313777035,1707714760268,-500.0,0.00022968,2]
[313777036,1707714760327,-500.0,0.00022968,2]
[313777037,1707714760350,-2823.3,0.00022968,2]
[313777038,1707714760371,-517.52,0.00022968,2]
[313777039,1707714760394,-2617.44,0.00022968,2]
[313777040,1707714760418,-1315.89,0.00022968,2]
[313777041,1707714760439,-2025.27,0.00022968,2]
[313777042,1707714760461,-1027.53,0.00022968,2]
[313777043,1707714760484,-750.39,0.00022968,2]
[313777044,1707714760507,-500.0,0.00022968,2]
[313777045,1707714760527,-500.0,0.00022968,2]
[313777046,1707714760549,-589.95,0.00022968,2]
[313777047,1707714760570,-1242.88,0.00022968,2]
[313777048,1707714760591,-500.0,0.00022968,2]
[313777049,1707714760611,-1074.9,0.00022969,2]
[313777050,1707714760633,-288.00000267,0.00022971,2]
[313777051,1707714760655,-890.01,0.00022971,2]
[313777052,1707714760677,-810.48,0.00022971,2]
[313777053,1707714760698,-4167.45,0.00022971,2]
[313777054,1707714760724,-500.0,0.00022971,2]
[313777055,1707714760745,-500.0,0.00022971,2]
[313777056,1707714760766,-4599.33,0.00022971,2]
[313777057,1707714760789,-2063.9,0.00022971,2]
[313777058,1707714760810,-500.0,0.00022971,2]
[313777059,1707714760831,-500.0,0.00022971,2]
[313777060,1707714760851,-2141.07,0.00022971,2]
[313777061,1707714760873,-500.0,0.00022971,2]
[313777062,1707714760895,-500.0,0.00022971,2]
[313777063,1707714760916,-500.0,0.00022971,2]
[313777064,1707714760936,-3298.06,0.00022971,2]
[313777065,1707714760958,-876.97,0.00022971,2]